bitfinex/quotes_SOLUSD_20241220
["timestamp","ask_amount","ask_price","bid_price","bid_amount"]
[1734696126616,44.59515573,176.45,176.34,79.11208671]
[1734696126797,44.59515573,176.45,176.36,44.59515573]
[1734696127006,44.59515573,176.45,176.37,34.51635568]
[1734696127209,44.59515573,176.43,176.37,0.42635568]
[1734696127412,44.59515573,176.47,176.39,20.0]
[1734696127619,44.59515573,176.51,176.41,20.0]
[1734696127814,44.59515573,176.49,176.42,0.42554321]
[1734696128030,44.59515573,176.45,176.42,0.42554321]
[1734696128403,44.59515573,176.49,176.43,0.12549]
[1734696128608,7.2447,176.7,176.48,44.59515573]
[1734696128809,44.59515573,176.63,176.57,0.12549]
[1734696129120,44.59515573,176.67,176.6,20.0]
[1734696129437,55.65995573,176.73,176.67,20.12549]
[1734696129737,55.65995573,176.73,176.67,20.54868519]
[1734696130031,44.59515573,176.73,176.67,0.54868519]
[1734696130219,44.59515573,176.77,176.72,20.0]
[1734696130420,7.2447,176.79,176.74,0.12549]
[1734696130623,11.7663395,176.83,176.79,0.12549]
[1734696130624,0.7015395,176.83,176.79,0.12549]
[1734696130820,0.7015395,176.83,176.79,20.54734889]
[1734696131017,44.59515573,176.87,176.81,20.0]
[1734696131220,44.59515573,176.87,176.83,0.12549]
[1734696131528,44.59515573,176.87,176.84,0.42140153]
[1734696131729,6.7378,176.89,176.85,0.12549]
[1734696131939,44.59515573,176.91,176.87,0.12549]
[1734696132104,11.799,176.95,176.86,0.42092854]
[1734696132105,44.59515573,176.89,176.86,0.42092854]
[1734696132305,89.19031146,176.87,176.78,0.42122154]
[1734696132620,44.59515573,176.94,176.67,23.776884]
[1734696132621,44.59515573,176.79,176.7,0.4219779]
[1734696132930,44.59515573,176.75,176.7,0.4219779]
[1734696133241,1.06047547,176.84,176.7,0.4219779]
[1734696133242,44.59515573,176.77,176.7,0.4219779]
[1734696133531,44.59515573,176.79,176.7,0.4219779]
[1734696133730,44.59515573,176.71,176.61,44.59515573]
[1734696133933,6.7378,176.78,176.67,44.59515573]
[1734696134138,51.33295573,176.78,176.68,0.42216412]
[1734696134311,44.59515573,176.76,176.68,0.42216412]
[1734696134514,44.59515573,176.7,176.68,0.42216412]
[1734696134729,44.59515573,176.7,176.57,44.59515573]
[1734696135048,1.06058443,176.75,176.58,0.42355547]
[1734696135049,44.59515573,176.67,176.58,0.42355547]
[1734696135204,44.59515573,176.69,176.59,44.59515573]
[1734696135410,44.59515573,176.69,176.6,0.42358598]
[1734696135609,44.59515573,176.73,176.64,0.12549]
[1734696135918,6.7378,176.78,176.72,20.0]
[1734696136122,6.7378,176.78,176.73,0.54795004]
[1734696136319,44.59515573,176.81,176.75,0.12549]
[1734696136520,44.59515573,176.85,176.79,0.12549]
[1734696136839,44.59515573,176.9,176.81,0.12549]
[1734696137007,11.6706,176.94,176.7,30.0]
[1734696137008,44.59515573,176.88,176.85,0.12549]
[1734696137212,44.59515573,176.86,176.83,0.42111621]
[1734696137441,44.59515573,176.86,176.79,20.0]
[1734696137607,1.05976087,176.93,176.8,0.4215654]
[1734696137608,44.59515573,176.84,176.8,0.4215654]
[1734696137946,1.05976087,176.93,176.81,0.42183581]
[1734696138126,44.59515573,176.84,176.81,0.42183581]
[1734696138375,56.26575573,176.94,176.67,44.59515573]
[1734696138376,44.59515573,176.88,176.82,20.0]
[1734696138527,44.59515573,176.9,176.82,20.42197277]
[1734696138841,44.59515573,176.92,176.85,0.12549]
[1734696139007,44.59515573,176.92,176.86,0.42053544]
[1734696139506,44.59515573,176.92,176.86,20.42053544]
[1734696139713,44.59515573,176.94,176.86,20.42053544]
[1734696139936,44.59515573,176.94,176.87,23.776884]
[1734696140238,44.59515573,176.94,176.9,20.0]
[1734696140543,0.5005157,176.95,176.91,0.4205806]
[1734696140847,0.5005157,176.95,176.94,20.12549]
[1734696141132,0.5005157,176.95,176.94,20.54490357]
[1734696141337,0.5005157,176.95,176.94,0.41941357]
[1734696141534,0.5005157,176.95,176.91,0.12549]
[1734696141709,44.59515573,176.92,176.77,45.01551386]
[1734696141907,44.59515573,176.84,176.77,0.42035813]
[1734696142326,44.59515573,176.86,176.77,0.42035813]
[1734696142650,44.59515573,176.88,176.77,45.01551386]
[1734696142837,44.59515573,176.86,176.77,0.42035813]
[1734696143034,44.59515573,176.86,176.78,0.42155576]
[1734696143550,51.38345573,176.9,176.79,44.72064573]
[1734696143720,51.38345573,176.9,176.76,44.59515573]
[1734696143721,6.7883,176.9,176.84,0.12549]
[1734696143925,44.59515573,176.94,176.85,44.59515573]
[1734696144141,44.59515573,176.92,176.86,0.42048782]
[1734696144441,0.5005157,176.95,176.86,0.42048782]
[1734696144442,44.59515573,176.88,176.86,0.42048782]
[1734696144646,44.59515573,176.88,176.78,0.42138908]
[1734696144844,44.59515573,176.87,176.78,0.42138908]
[1734696145354,0.5005157,176.95,176.81,44.59515573]
[1734696145552,44.59515573,176.88,176.82,0.4208439]
[1734696145956,44.59515573,176.9,176.83,0.12549]
[1734696146257,44.59515573,176.92,176.85,0.12549]
[1734696146463,0.5005157,176.95,176.87,0.12549]
[1734696146658,0.5005157,176.95,176.91,0.12549]
[1734696146959,0.3751157,176.95,176.94,44.72064573]
[1734696147261,0.3751157,176.95,176.94,45.13977634]
[1734696147435,0.3751157,176.95,176.94,24.32150461]
[1734696147637,0.3751157,176.95,176.94,68.91666034]
[1734696147853,44.59515573,177.04,176.94,45.13977634]
[1734696148155,44.59515573,177.04,176.97,20.0]
[1734696148336,44.59515573,177.04,176.98,0.5446095]
[1734696148538,44.59515573,177.08,177.02,23.902374]
[1734696148739,51.88685573,177.1,177.06,0.12549]
[1734696148954,51.88685573,177.1,177.05,20.0]
[1734696149154,51.88685573,177.1,177.06,0.12549]
[1734696149837,7.2917,177.1,177.09,20.0]
[1734696150043,44.59515573,177.12,177.09,20.41787412]
[1734696150336,44.59515573,177.14,177.09,20.0]
[1734696150538,44.59515573,177.14,177.08,0.12549]
[1734696150834,44.59515573,177.14,177.08,0.54352892]
[1734696151051,44.59515573,177.16,177.1,0.12549]
[1734696151259,44.59515573,177.12,177.1,20.0]
[1734696151434,45.27931163,177.13,177.1,20.0]
[1734696151638,45.27931163,177.13,177.11,0.12549]
[1734696151836,0.6841559,177.13,177.11,0.12549]
[1734696152134,0.6841559,177.13,177.08,0.41800686]
[1734696152333,0.6841559,177.13,177.11,20.0]
[1734696152532,0.6841559,177.13,177.12,20.54310224]
[1734696152744,0.6841559,177.13,177.12,65.13825797]
[1734696153063,7.2735,177.32,177.21,0.12549]
[1734696153390,44.59515573,177.29,177.22,0.41612525]
[1734696153868,44.59515573,177.27,177.22,0.41612525]
[1734696154073,44.59515573,177.29,177.22,0.41612525]
[1734696154360,44.59515573,177.29,177.23,0.41637144]
[1734696154570,45.27931163,177.31,177.23,0.41637144]
[1734696154744,0.6841559,177.31,177.26,20.0]
[1734696154936,0.6841559,177.31,177.27,0.54139531]
[1734696155248,0.6841559,177.31,177.3,20.12549]
[1734696155770,0.6841559,177.31,177.3,20.54077376]
[1734696155949,0.6841559,177.31,177.3,0.54077376]
[1734696156257,44.59515573,177.41,177.33,20.0]
[1734696156475,7.1352,177.42,177.35,0.12549]
[1734696156637,7.1352,177.42,177.4,0.12549]
[1734696156835,0.6841559,177.48,177.44,0.12549]
[1734696157049,0.6841559,177.48,177.44,0.41394678]
[1734696157462,0.6841559,177.48,177.47,20.0]
[1734696157661,0.6841559,177.48,177.47,43.902374]
[1734696157847,0.5587559,177.48,177.47,44.31527245]
[1734696158169,7.3007,177.64,177.47,44.31527245]
[1734696158170,7.3007,177.64,177.51,20.0]
[1734696158472,0.6841559,177.66,177.61,44.59515573]
[1734696158673,18.8577,177.75,177.68,20.0]
[1734696158674,63.45285573,177.75,177.68,20.0]
[1734696158838,44.59515573,177.84,177.68,20.0]
[1734696158839,44.59515573,177.79,177.72,20.0]
[1734696159041,44.59515573,177.83,177.78,0.12549]
[1734696159250,44.59515573,177.85,177.8,0.12549]
[1734696159485,7.1424,177.86,177.82,0.12549]
[1734696159644,7.935749,177.97,177.85,20.0]
[1734696159844,44.59515573,177.93,177.86,0.40862344]
[1734696160044,52.53090473,177.97,177.89,20.0]
[1734696160359,7.935749,177.97,177.93,0.12549]
[1734696160566,0.793349,177.97,177.93,0.53359326]
[1734696160901,0.793349,177.97,177.95,20.0]
[1734696161064,0.793349,177.97,177.96,0.40783266]
[1734696161366,0.793349,177.97,177.85,24.18476329]
[1734696161367,89.98366046,177.97,177.85,24.18476329]
[1734696161552,44.59515573,177.87,177.8,20.0]
[1734696161867,44.59515573,177.85,177.82,23.776884]
[1734696162168,44.59515573,177.87,177.81,0.40937082]
[1734696162345,44.59515573,177.87,177.83,0.40936716]
[1734696162543,44.59515573,177.89,177.83,0.40936716]
[1734696162747,0.793349,177.97,177.86,0.12549]
[1734696162748,44.59515573,177.95,177.86,0.12549]
[1734696162989,45.38850473,177.97,177.9,0.12549]
[1734696163280,0.793349,177.97,177.93,44.59515573]
[1734696163491,0.793349,177.97,177.94,0.40742352]
[1734696163859,44.59515573,177.95,177.91,0.40783035]
[1734696164052,44.59515573,177.95,177.66,44.59515573]
[1734696164053,89.19031146,177.93,177.82,0.40875657]
[1734696164286,44.59515573,177.85,177.82,0.40875657]
[1734696164584,44.59515573,177.88,177.79,44.59515573]
[1734696164791,44.59515573,177.88,177.78,0.40947234]
[1734696164792,44.59515573,177.9,177.81,44.59515573]
[1734696164965,44.59515573,177.9,177.82,0.40887308]
[1734696165292,44.59515573,177.9,177.83,0.12549]
[1734696165458,44.59515573,177.9,177.84,20.40876007]
[1734696165657,44.59515573,177.86,177.76,0.40877828]
[1734696165857,44.59515573,177.8,177.76,0.40877828]
[1734696166179,44.59515573,177.85,177.76,0.40877828]
[1734696166360,44.59515573,177.83,177.76,0.40877828]
[1734696166562,6.909,178.0,177.8,44.59515573]
[1734696166765,45.38850473,177.97,177.88,44.59515573]
[1734696167068,0.793349,177.97,177.89,0.40805951]
[1734696167291,0.793349,177.97,177.9,0.12549]
[1734696167591,0.793349,177.97,177.96,20.12549]
[1734696167794,0.793349,177.97,177.96,20.5328031]
[1734696167995,45.38850473,177.97,177.96,20.0]
[1734696168165,45.38850473,177.97,177.91,0.40785673]
[1734696168361,45.38850473,177.97,177.92,0.12549]
[1734696168566,45.38850473,177.97,177.96,20.12549]
[1734696169298,45.38850473,177.97,177.82,32.40308546]
[1734696169596,44.59515573,177.95,177.85,44.59515573]
[1734696169799,0.793349,177.97,177.89,44.59515573]
[1734696170098,0.793349,177.97,177.91,44.59515573]
[1734696170461,0.793349,177.97,177.92,20.12549]
[1734696170692,44.59515573,177.93,177.92,22.492269]
[1734696170880,89.19031146,177.93,177.92,0.251769]
[1734696171063,89.19031146,177.93,177.77,44.59515573]
[1734696171064,89.19031146,177.93,177.77,78.68515573]
[1734696171266,44.59515573,177.86,177.77,44.59515573]
[1734696171686,44.59515573,177.9,177.81,44.59515573]
[1734696172096,44.59515573,177.85,177.78,22.50505]
[1734696172273,0.793349,177.97,177.84,44.59515573]
[1734696172477,44.59515573,177.96,177.87,0.12549]
[1734696172796,0.793349,177.97,177.8,30.0]
[1734696172797,0.793349,177.97,177.88,44.59515573]
[1734696172960,0.793349,177.97,177.89,34.21549]
[1734696173161,0.793349,177.97,177.84,44.59515573]
[1734696173162,0.793349,177.97,177.95,34.21549]
[1734696173475,44.59515573,178.07,178.0,20.12549]
[1734696173866,44.59515573,178.05,178.0,20.0]
[1734696174066,44.59515573,178.12,178.05,34.09]
[1734696174290,44.59515573,178.12,178.08,20.0]
[1734696174495,44.59515573,178.16,178.09,0.12549]
[1734696174671,44.59515573,178.1,178.08,20.0]
[1734696174878,44.59515573,178.1,178.03,20.0]
[1734696175071,44.59515573,178.1,178.03,54.09]
[1734696175285,44.59515573,178.1,178.04,0.12549]
[1734696175480,44.59515573,178.12,178.05,20.0]
[1734696175862,44.59515573,178.1,178.09,20.0]
[1734696176187,44.59515573,178.1,177.98,34.09]
[1734696176387,44.59515573,178.0,177.9,44.59515573]
[1734696176576,44.59515573,178.02,177.92,44.59515573]
[1734696176775,44.59515573,178.04,177.94,44.59515573]
[1734696176976,44.59515573,178.08,177.98,44.59515573]
[1734696177166,1.05248906,178.19,178.02,0.12549]
[1734696177363,44.59515573,178.09,178.02,0.12549]
[1734696177567,44.59515573,178.09,177.89,30.0]
[1734696177568,44.59515573,178.05,177.99,20.0]
[1734696177898,44.59515573,178.05,177.97,20.0]
[1734696178069,1.05246444,178.19,177.98,34.09]
[1734696178410,44.59515573,178.09,178.01,54.09]
[1734696178578,1.05244599,178.19,178.01,20.0]
[1734696178764,44.59515573,178.07,177.97,46.82770101]
[1734696178965,1.05216649,178.19,177.99,44.59515573]
[1734696179279,44.59515573,178.1,178.0,34.09]
[1734696179483,44.59515573,178.1,178.04,20.0]
[1734696179694,44.59515573,178.08,178.04,20.0]
[1734696180008,44.59515573,178.06,177.93,44.59515573]
[1734696180306,44.59515573,177.98,177.87,44.59515573]
[1734696180484,44.59515573,177.96,177.87,44.59515573]
[1734696180885,44.59515573,178.0,177.91,44.59515573]
[1734696181086,44.59515573,178.02,177.91,44.59515573]
[1734696181392,44.59515573,177.94,177.83,44.59515573]
[1734696181701,44.59515573,177.87,177.78,67.10020573]
[1734696182379,44.59515573,177.93,177.84,44.59515573]
[1734696182609,44.59515573,177.93,177.85,34.09]
[1734696182808,44.59515573,177.91,177.8,44.59515573]
[1734696183103,1.05339572,178.01,177.84,44.59515573]
[1734696183306,44.59515573,177.97,177.88,44.59515573]
[1734696183495,44.59515573,177.93,177.84,44.59515573]
[1734696183694,44.59515573,177.95,177.87,0.12549]
[1734696183891,44.59515573,178.11,177.93,30.0]
[1734696184112,44.59515573,178.11,178.03,0.12549]
[1734696184282,44.59515573,178.11,178.03,23.902374]
[1734696184605,44.59515573,178.11,177.97,23.776884]
[1734696184606,44.59515573,178.07,177.97,23.776884]
[1734696184784,44.59515573,178.11,177.97,23.776884]
[1734696184785,44.59515573,178.05,177.97,23.776884]
[1734696184984,44.59515573,178.07,178.05,20.0]
[1734696185179,44.59515573,178.12,178.05,20.0]
[1734696185378,44.59515573,178.16,178.13,20.0]
[1734696185608,45.56460313,178.22,178.17,20.0]
[1734696185789,45.56460313,178.22,178.18,0.12549]
[1734696185995,0.9694474,178.22,178.21,20.0]
[1734696186507,0.9694474,178.22,178.21,43.776884]
[1734696186682,0.9694474,178.22,178.21,88.37203973]
[1734696186883,0.9694474,178.22,178.21,88.49752973]
[1734696187300,0.9694474,178.22,178.21,43.902374]
[1734696187517,0.9694474,178.22,178.21,20.12549]
[1734696188006,0.9694474,178.22,178.21,88.49752973]
[1734696188208,0.9694474,178.22,178.21,64.72064573]
[1734696188396,0.9694474,178.22,178.11,74.59515573]
[1734696188397,0.9694474,178.22,178.16,44.59515573]
[1734696188591,0.9694474,178.22,178.21,43.776884]
[1734696189602,0.9694474,178.22,178.21,43.902374]
[1734696190116,44.59515573,178.35,178.22,23.902374]
[1734696190292,44.59515573,178.35,178.26,23.902374]
[1734696190493,44.59515573,178.33,178.25,44.59515573]
[1734696190696,44.59515573,178.33,178.26,23.776884]
[1734696190888,1.05112114,178.46,178.28,44.59515573]
[1734696191089,44.59515573,178.42,178.32,44.59515573]
[1734696191293,45.56460313,178.47,178.38,44.59515573]
[1734696191506,45.56460313,178.47,178.37,0.12549]
[1734696191507,0.9694474,178.47,178.4,44.59515573]
[1734696191707,0.9694474,178.47,178.41,23.902374]
[1734696191911,0.9694474,178.47,178.41,0.12549]
[1734696192208,44.59515573,178.45,178.35,23.776884]
[1734696192408,44.59515573,178.43,178.35,23.776884]
[1734696192614,44.59515573,178.45,178.35,23.776884]
[1734696192790,0.9694474,178.47,178.4,23.902374]
[1734696193115,44.59515573,178.43,178.35,68.37203973]
[1734696193300,44.59515573,178.41,178.36,22.43784]
[1734696193491,44.59515573,178.39,178.31,44.59515573]
[1734696193690,0.9694474,178.47,178.38,44.59515573]
[1734696194000,0.9694474,178.47,178.4,44.59515573]
[1734696194185,0.9694474,178.47,178.38,44.59515573]
[1734696194382,0.9694474,178.47,178.4,44.59515573]
[1734696194993,45.56460313,178.47,178.38,44.59515573]
[1734696195201,45.56460313,178.47,178.46,44.72064573]
[1734696195202,0.9694474,178.47,178.46,44.72064573]
[1734696195402,0.9694474,178.47,178.46,68.05012147]
[1734696195610,0.151,178.61,178.48,0.12549]
[1734696195814,44.14774747,178.54,178.43,7.59038247]
[1734696196016,44.14774747,178.52,178.42,44.14774747]
[1734696197389,44.14774747,178.52,178.38,44.14774747]
[1734696197390,44.14774747,178.56,178.46,44.14774747]
[1734696197611,44.14774747,178.56,178.47,23.902374]
[1734696197818,44.14774747,178.6,178.51,23.902374]
[1734696198026,44.14774747,178.58,178.48,44.14774747]
[1734696198207,44.14774747,178.58,178.49,23.776884]
[1734696198524,44.14774747,178.56,178.49,23.776884]
[1734696198820,44.14774747,178.6,178.52,0.12549]
[1734696199000,44.14774747,178.6,178.51,23.776884]
[1734696199312,44.14774747,178.52,178.4,44.14774747]
[1734696199520,44.14774747,178.48,178.38,44.14774747]
[1734696200017,44.14774747,178.54,178.44,44.14774747]
[1734696200495,44.14774747,178.54,178.38,46.41520234]
[1734696200496,44.14774747,178.56,178.46,44.14774747]
[1734696200692,44.14774747,178.56,178.47,23.776884]
[1734696201012,44.14774747,178.6,178.49,23.776884]
[1734696201216,0.151,178.61,178.55,0.12549]
[1734696201518,0.151,178.61,178.55,23.902374]
[1734696202520,0.151,178.61,178.53,23.776884]
[1734696202926,44.14774747,178.6,178.53,23.776884]
[1734696203095,0.151,178.61,178.53,23.776884]
[1734696203293,44.14774747,178.54,178.44,44.14774747]
[1734696203498,44.14774747,178.5,178.4,44.14774747]
[1734696203800,44.14774747,178.56,178.19,36.5125598]
[1734696203801,44.14774747,178.44,178.32,44.14774747]
[1734696204001,10.5488,178.49,178.26,30.0]
[1734696204002,44.14774747,178.39,178.29,44.14774747]
[1734696204297,44.14774747,178.35,178.21,44.14774747]
[1734696204536,10.5488,178.49,178.07,6.4728]
[1734696204537,44.14774747,178.22,178.07,30.0]
[1734696204709,44.14774747,178.22,178.01,0.3070876]
[1734696204710,44.14774747,178.2,178.09,44.14774747]
[1734696204919,44.14774747,178.22,178.13,44.14774747]
[1734696205511,44.14774747,178.24,178.13,44.14774747]
[1734696205827,14.0087,178.46,178.21,44.14774747]
[1734696206129,44.14774747,178.34,178.23,44.14774747]
[1734696206298,1.05100666,178.46,178.19,44.14774747]
[1734696206623,1.05100666,178.46,178.14,22.449895]
[1734696206624,44.14774747,178.38,178.28,44.14774747]
[1734696206825,44.14774747,178.36,178.24,44.14774747]
[1734696207120,44.14774747,178.34,178.24,44.14774747]
[1734696207421,44.14774747,178.32,178.22,44.14774747]
[1734696207622,44.14774747,178.34,178.22,44.14774747]
[1734696207822,44.14774747,178.28,178.18,44.14774747]
[1734696208030,44.14774747,178.2,178.1,44.14774747]
[1734696208207,44.14774747,178.29,178.06,44.14774747]
[1734696208208,44.14774747,178.16,178.06,44.14774747]
[1734696208612,1.05192474,178.28,178.01,0.3070876]
[1734696208613,44.14774747,178.2,178.09,44.14774747]
[1734696208803,44.14774747,178.16,178.07,22.470871]
[1734696209001,44.14774747,178.2,178.09,44.14774747]
[1734696209208,44.14774747,178.18,178.07,66.61861847]
[1734696209426,44.14774747,178.16,178.07,22.470871]
[1734696209640,44.14774747,178.18,178.07,66.61861847]
[1734696209829,44.14774747,178.2,178.09,44.14774747]
[1734696210037,44.14774747,178.29,178.11,44.14774747]
[1734696210233,44.14774747,178.29,178.13,44.14774747]
[1734696210234,44.14774747,178.24,178.13,44.14774747]
[1734696210415,17.8896,178.36,178.19,44.14774747]
[1734696210617,44.14774747,178.35,178.26,0.12549]
[1734696210832,11.3631,178.36,178.28,0.12549]
[1734696211033,44.14774747,178.35,178.25,44.14774747]
[1734696211242,11.3631,178.36,178.23,44.14774747]
[1734696211243,44.14774747,178.33,178.23,44.14774747]
[1734696211416,44.14774747,178.33,178.24,0.12549]
[1734696211617,44.14774747,178.35,178.25,44.14774747]
[1734696211818,44.14774747,178.31,178.21,44.14774747]
[1734696212038,44.14774747,178.35,178.25,44.14774747]
[1734696212241,44.14774747,178.35,178.26,0.12549]
[1734696212837,11.3631,178.36,178.3,44.14774747]
[1734696213019,44.14774747,178.41,178.33,0.12549]
[1734696213217,54.66924747,178.45,178.35,0.12549]
[1734696213529,44.14774747,178.41,178.35,0.12549]
[1734696213727,44.14774747,178.41,178.32,44.14774747]
[1734696213921,44.14774747,178.41,178.3,44.14774747]
[1734696214125,44.14774747,178.37,178.26,44.14774747]
[1734696214340,44.14774747,178.37,178.28,44.14774747]
[1734696214721,44.14774747,178.39,178.3,44.14774747]
[1734696214924,44.14774747,178.37,178.28,44.14774747]
[1734696215143,44.14774747,178.39,178.3,44.14774747]
[1734696215323,44.14774747,178.39,178.21,33.75]
[1734696215324,44.14774747,178.37,178.28,44.14774747]
[1734696215519,44.14774747,178.43,178.33,0.12549]
[1734696215945,44.14774747,178.43,178.35,0.12549]
[1734696216133,44.14774747,178.39,178.3,44.14774747]
[1734696216453,44.14774747,178.42,178.32,44.14774747]
[1734696216749,44.14774747,178.4,178.31,0.12549]
[1734696216926,44.14774747,178.44,178.34,44.14774747]
[1734696217266,44.14774747,178.42,178.32,44.14774747]
[1734696217421,44.14774747,178.4,178.3,61.19774747]
[1734696217755,44.14774747,178.4,178.31,33.75]
[1734696218053,44.14774747,178.4,178.3,44.14774747]
[1734696218260,44.14774747,178.42,178.32,44.14774747]
[1734696218546,44.14774747,178.46,178.35,44.14774747]
[1734696218731,44.14774747,178.46,178.38,0.12549]
[1734696219048,44.14774747,178.42,178.33,44.14774747]
[1734696219253,44.14774747,178.48,178.37,44.14774747]
[1734696219451,44.14774747,178.54,178.46,0.12549]
[1734696219648,11.039,178.55,178.46,0.12549]
[1734696219951,44.14774747,178.54,178.46,0.12549]
[1734696220544,44.14774747,178.52,178.43,44.14774747]
[1734696220756,44.14774747,178.52,178.41,44.14774747]
[1734696220990,44.14774747,178.54,178.43,77.89774747]
[1734696221456,44.14774747,178.48,178.39,44.14774747]
[1734696221652,44.14774747,178.4,178.31,44.14774747]
[1734696221857,44.14774747,178.35,178.25,44.14774747]
[1734696222059,44.14774747,178.39,178.29,44.14774747]
[1734696222361,44.14774747,178.35,178.2,33.75]
[1734696222569,44.14774747,178.31,178.21,44.14774747]
[1734696223556,11.4394,178.36,178.15,44.14774747]
[1734696223557,44.14774747,178.25,178.15,44.14774747]
[1734696223859,44.14774747,178.19,178.09,44.14774747]
[1734696224033,1.05213657,178.27,178.12,44.14774747]
[1734696224235,44.14774747,178.23,178.14,44.14774747]
[1734696224982,44.14774747,178.21,178.1,44.14774747]
[1734696225187,44.14774747,178.21,178.12,44.14774747]
[1734696225361,44.14774747,178.23,178.12,44.14774747]
[1734696225543,44.14774747,178.25,178.16,44.14774747]
[1734696225746,44.14774747,178.29,178.2,44.14774747]
[1734696225950,44.14774747,178.31,178.21,0.12549]
[1734696226274,44.14774747,178.23,178.12,44.14774747]
[1734696226781,44.14774747,178.21,178.1,44.14774747]
[1734696226983,44.14774747,178.23,178.12,44.14774747]
[1734696227162,44.14774747,178.25,178.16,44.14774747]
[1734696227473,44.14774747,178.29,178.18,44.14774747]
[1734696227653,1.05200894,178.35,178.26,44.14774747]
[1734696227654,44.14774747,178.35,178.26,44.14774747]
[1734696227855,44.14774747,178.31,178.2,44.14774747]
[1734696228176,44.14774747,178.25,178.16,44.14774747]
[1734696228510,44.14774747,178.23,178.14,44.14774747]
[1734696228871,44.14774747,178.27,178.18,44.14774747]
[1734696229059,44.14774747,178.29,178.18,44.14774747]
[1734696229374,44.14774747,178.27,178.18,44.14774747]
[1734696229745,44.14774747,178.25,178.14,44.14774747]
[1734696229949,44.14774747,178.27,178.16,44.14774747]
[1734696230169,44.14774747,178.25,178.14,44.14774747]
[1734696230364,44.14774747,178.23,178.15,0.12549]
[1734696230678,44.14774747,178.23,178.14,44.14774747]
[1734696230975,44.14774747,178.27,178.17,44.14774747]
[1734696231146,44.14774747,178.25,178.15,44.14774747]
[1734696231351,44.14774747,178.23,178.13,44.14774747]
[1734696231574,44.14774747,178.23,178.14,0.12549]
[1734696231762,44.14774747,178.21,178.11,44.14774747]
[1734696232074,44.14774747,178.23,178.13,44.14774747]
[1734696232305,44.14774747,178.21,178.11,44.14774747]
[1734696232761,44.14774747,178.23,178.13,44.14774747]
[1734696232963,44.14774747,178.25,178.15,44.14774747]
[1734696233582,44.14774747,178.23,178.13,44.14774747]
[1734696233785,44.14774747,178.19,178.09,44.14774747]
[1734696233984,44.14774747,178.17,178.09,44.14774747]
[1734696234289,44.14774747,178.25,178.16,44.14774747]
[1734696234596,1.05178124,178.37,178.25,0.12549]
[1734696234799,44.14774747,178.38,178.28,44.14774747]
[1734696235391,55.58714747,178.36,178.26,44.14774747]
[1734696235602,44.14774747,178.34,178.26,44.14774747]
[1734696235973,55.58714747,178.36,178.26,44.14774747]
[1734696236174,55.58714747,178.36,178.22,44.14774747]
[1734696236175,44.14774747,178.32,178.22,44.14774747]
[1734696236407,44.14774747,178.34,178.24,44.14774747]
[1734696236577,44.14774747,178.34,178.14,17.05]
[1734696236578,44.14774747,178.32,178.22,44.14774747]
[1734696237094,44.14774747,178.32,178.23,0.12549]
[1734696237281,44.14774747,178.32,178.22,44.14774747]
[1734696237803,44.14774747,178.28,178.2,44.14774747]
[1734696237998,44.14774747,178.3,178.2,44.14774747]
[1734696238386,44.14774747,178.3,178.21,0.12549]
[1734696238596,44.14774747,178.28,178.18,44.14774747]
[1734696238794,44.14774747,178.24,178.14,44.14774747]
[1734696239104,44.14774747,178.18,178.08,44.14774747]
[1734696239280,0.12549,178.27,178.07,22.470871]
[1734696239281,44.14774747,178.16,178.07,22.470871]
[1734696239605,44.14774747,178.08,178.01,0.3070876]
[1734696239897,44.14774747,178.05,178.01,0.3070876]
[1734696240104,44.14774747,178.09,178.01,0.3070876]
[1734696240487,44.14774747,178.05,178.01,0.3070876]
[1734696241001,1.05288181,178.16,178.04,44.14774747]
[1734696241171,44.14774747,178.16,178.06,44.14774747]
[1734696241370,44.14774747,178.12,178.02,44.14774747]
[1734696241574,44.14774747,178.1,178.01,0.3070876]
[1734696241875,11.97065459,178.19,178.01,0.3070876]
[1734696241876,1.05255459,178.19,178.01,0.3070876]
[1734696242080,44.14774747,178.19,178.08,44.14774747]
[1734696242397,44.14774747,178.19,178.09,0.12549]
[1734696242585,44.14774747,178.19,178.11,0.12549]
[1734696242781,44.14774747,178.19,178.01,0.3070876]
[1734696242983,44.14774747,178.11,178.01,44.45483507]
[1734696243289,44.14774747,178.05,178.01,0.3070876]
[1734696243481,44.14774747,178.03,178.01,0.3070876]
[1734696243998,1.05289381,178.1,178.01,0.3070876]
[1734696244301,44.14774747,178.24,178.09,0.12549]
[1734696244503,44.14774747,178.24,178.15,44.14774747]
[1734696244678,1.05193257,178.33,178.17,44.14774747]
[1734696244997,1.05193257,178.33,178.13,2.24748004]
[1734696244998,44.14774747,178.25,178.13,2.24748004]
[1734696245305,55.53194747,178.15,178.01,0.3070876]